{"text_format":"1","workbook":"xlsx","n_sheets":5,"sheets":["Frequentie","Amplitude","Frequentie-2","Trillingstijd","Help"],"not_rendered":{"charts":2,"images":0,"macros":1,"external_links":0,"defined_names":0,"comments":0,"pivot_tables":0},"unopened":[],"bounds":{"document_bytes":16777216,"sheet_cells":100000,"rows_first":2000,"rows_last":500,"rows_between":2000,"halvings":0,"cell_chars":16384,"cell_head_chars":4096},"cells_cut":0,"cells_raw":0,"read":"whole","date_system":"1900"}

{"sheet":"Frequentie","index":0,"n_rows":401,"n_cols":24,"rows_kept":401,"cut":false,"hidden":false,"merged":[]}
["Oefeningen frequentie 2 HV",null,null,null,null,null,null,null,null,null,null,null,"1,2 of 3",0,{"$f":"SIN(RADIANS(N1/100*$V$3*360))","v":0}]
[null,null,null,null,null,null,null,null,null,null,"Moeilijkheidsgraad:",null,3,0.25,{"$f":"SIN(RADIANS(N2/100*$V$3*360))","v":7.8459095727844944E-2}]
[null,null,null,null,null,null,null,null,null,null,null,null,null,0.5,0.15643446504023087,null,100,"aantal trillingen",null,{"$f":"ROUND(RANDBETWEEN(1,25),0)","v":13},null,5]
[null,null,null,null,null,null,null,null,null,null,null,null,null,0.75,0.23344536385590539,null,2]
[null,null,null,null,null,null,null,null,null,null,null,null,null,1,0.3090169943749474,null,100]
[null,null,null,null,null,null,null,null,null,null,null,null,null,1.25,0.38268343236508978,null,3,"tijd/hokje",null,{"$f":"RANDBETWEEN(1,IF(M2=1,10,IF(M2=2,10,10)))","v":8},null,3,"s"]
[null,null,null,null,null,null,null,null,null,null,null,null,null,1.5,0.45399049973954675,null,null,null,null,{"$f":"RANDBETWEEN(1,M2)","v":2},null,2]
[null,null,null,null,null,null,null,null,null,null,null,null,null,1.75,0.52249856471594891,null,null,"Trillingsrijd",null,{"$f":"ROUND(T6*25/T3,0)/(1000^T7)","v":1.5E-5},null,1.5E-5,"s"]
[null,null,null,null,null,null,null,null,null,null,null,null,null,2,0.58778525229247314,null,null,null,null,{"$f":"ROUND(T6*25/(T3),0)","v":15},null,15,{"$f":"IF(V7=1,\"m\",IF(V7=2,\"μ\",\"n\"))","v":"μ"}]
[null,null,null,null,null,null,null,null,null,null,null,null,null,2.25,0.64944804833018355,null,null,"Frequnetie",null,{"$f":"1/((T8*25)/T3)","v":34666.666666666664},null,13333.333333333332,"Hz"]
[null,null,null,null,null,null,null,null,null,null,null,"Lees E als x 10 tot de macht",null,2.5,0.70710678118654746]
[null,null,null,null,null,null,null,null,null,null,null,"E-03 = x 0,001",null,2.75,0.76040596560003104]
[null,null,null,null,null,null,null,null,null,null,null,"E-02 = x 0,01",null,3,0.80901699437494745,null,null,null,{"$f":"CONCATENATE(\"t = 25 hokjes x \",V9,\" \",W9,\"s = \",25*V9,\" \",W9,\"s\")","v":"t = 25 hokjes x 15 μs = 375 μs"}]
[null,null,null,null,null,null,null,null,null,null,null,"E-01 = x 0,1",null,3.25,0.85264016435409218,null,null,null,{"$f":"CONCATENATE(\"T = \",25*V9,\" \",W9,\"s : \",V3,\" trillingen = \",ROUND(25*V9/V3,2),\" \",W9,\"s\")","v":"T = 375 μs : 5 trillingen = 75 μs"}]
[null,null,null,null,null,null,null,null,null,null,null,"E+00 = x 1",null,3.5,0.8910065241883679,null,null,null,"T =",{"$f":"V9*25/V3","v":75},{"$f":"CONCATENATE(,\" \",W9,\"s\")","v":" μs"},{"$f":"CONCATENATE(\"=\")","v":"="},{"$f":"CONCATENATE(ROUND(T15,2),\"x10^\",TEXT(0,V7*-3))","v":"75x10^-6"},"s"]
[null,null,null,null,null,null,null,null,null,null,null,"E+01 = x 10",null,3.75,0.92387953251128674,null,null,null,"f =","?"]
[null,null,null,null,null,null,null,null,null,null,null,"E+02 = x 100",null,4,0.95105651629515353,null,null,null,"f =","1 / T"]
[null,null,null,null,null,null,null,null,null,null,null,"E+03 = x 1000",null,4.25,0.97236992039767667,null,null,null,"f =",{"$f":"CONCATENATE(\"1 / \",ROUND(T15,2),\" \",W9,\"s\")","v":"1 / 75 μs"}]
[null,null,null,null,{"$f":"CONCATENATE(\"De tijd per hokje is \",V9,\" \",W9,\"s.\",\"    Bereken de frequentie.\")","v":"De tijd per hokje is 15 μs.    Bereken de frequentie."},null,null,null,null,null,null,null,null,4.5,0.98768834059513766,null,null,null,"f =",{"$f":"IF(V10>999,TEXT(V10,\"0,00E+00\"),TEXT(V10,\"0,00\"))","v":"1,33E+04"},"Hz"]
[null,null,null,null,null,null,null,null,null,null,null,null,null,4.75,0.99691733373312796]
["1)","Bereken de totale tijd (t)",null,null,null,null,null,null,null,null,null,null,null,5,1]
["2)","Bereken de trillingstijd (T)",null,null,null,null,null,null,null,null,null,null,null,5.25,0.99691733373312796]
[null,null,null,null,null,null,null,null,null,null,null,null,null,5.5,0.98768834059513766]
["3)","Bereken de fequentie (f)",null,null,null,null,null,null,null,null,null,null,null,5.75,0.97236992039767656]
[null,null,null,null,null,null,null,null,null,null,null,null,null,6,0.95105651629515364]
[null,null,null,null,null,null,null,null,null,null,null,null,null,6.25,0.92387953251128674]
[null,null,null,null,null,null,null,null,null,null,null,null,null,6.5,0.8910065241883679]
[null,null,null,null,null,null,null,null,null,null,null,null,null,6.75,0.85264016435409207]
[null,null,null,null,null,null,null,null,null,null,null,null,null,7,0.80901699437494723]
[null,null,null,null,null,null,null,null,null,null,null,null,null,7.25,0.76040596560003104]
[null,null,null,null,null,null,null,null,null,null,null,null,null,7.5,0.70710678118654757]
[null,"www.betavakken.nl",null,null,null,null,null,null,null,null,null,null,null,7.75,0.64944804833018377]
[null,null,null,null,null,null,null,null,null,null,null,null,null,8,0.58778525229247325]
[null,null,null,null,null,null,null,null,null,null,null,null,null,8.25,0.52249856471594891]
[null,null,null,null,null,null,null,null,null,null,null,null,null,8.5,0.45399049973954647]
[null,null,null,null,null,null,null,null,null,null,null,null,null,8.75,0.38268343236508989]
[null,null,null,null,null,null,null,null,null,null,null,null,null,9,0.30901699437494795]
[null,null,null,null,null,null,null,null,null,null,null,null,null,9.25,0.23344536385590553]
[null,null,null,null,null,null,null,null,null,null,null,null,null,9.5,0.15643446504023098]
[null,null,null,null,null,null,null,null,null,null,null,null,null,9.75,7.8459095727844624E-2]
[null,null,null,null,null,null,null,null,null,null,null,null,null,10,1.22514845490862E-16]
[null,null,null,null,null,null,null,null,null,null,null,null,null,10.25,-7.8459095727844375E-2]
[null,null,null,null,null,null,null,null,null,null,null,null,null,10.5,-0.15643446504023073]
[null,null,null,null,null,null,null,null,null,null,null,null,null,10.75,-0.23344536385590528]
[null,null,null,null,null,null,null,null,null,null,null,null,null,11,-0.30901699437494773]
[null,null,null,null,null,null,null,null,null,null,null,null,null,11.25,-0.38268343236508967]
[null,null,null,null,null,null,null,null,null,null,null,null,null,11.5,-0.45399049973954708]
[null,null,null,null,null,null,null,null,null,null,null,null,null,11.75,-0.52249856471594835]
[null,null,null,null,null,null,null,null,null,null,null,null,null,12,-0.58778525229247303]
[null,null,null,null,null,null,null,null,null,null,null,null,null,12.25,-0.64944804833018388]
[null,null,null,null,null,null,null,null,null,null,null,null,null,12.5,-0.70710678118654746]
[null,null,null,null,null,null,null,null,null,null,null,null,null,12.75,-0.7604059656000306]
[null,null,null,null,null,null,null,null,null,null,null,null,null,13,-0.80901699437494734]
[null,null,null,null,null,null,null,null,null,null,null,null,null,13.25,-0.8526401643540924]
[null,null,null,null,null,null,null,null,null,null,null,null,null,13.5,-0.89100652418836823]
[null,null,null,null,null,null,null,null,null,null,null,null,null,13.75,-0.92387953251128685]
[null,null,null,null,null,null,null,null,null,null,null,null,null,14,-0.95105651629515375]
[null,null,null,null,null,null,null,null,null,null,null,null,null,14.25,-0.97236992039767622]
[null,null,null,null,null,null,null,null,null,null,null,null,null,14.5,-0.98768834059513766]
[null,null,null,null,null,null,null,null,null,null,null,null,null,14.75,-0.99691733373312796]
[null,null,null,null,null,null,null,null,null,null,null,null,null,15,-1]
[null,null,null,null,null,null,null,null,null,null,null,null,null,15.25,-0.99691733373312796]
[null,null,null,null,null,null,null,null,null,null,null,null,null,15.5,-0.98768834059513777]
[null,null,null,null,null,null,null,null,null,null,null,null,null,15.75,-0.97236992039767656]
[null,null,null,null,null,null,null,null,null,null,null,null,null,16,-0.95105651629515364]
[null,null,null,null,null,null,null,null,null,null,null,null,null,16.25,{"$f":"SIN(RADIANS(N66/100*$V$3*360))","v":-0.92387953251128663}]
[null,null,null,null,null,null,null,null,null,null,null,null,null,16.5,-0.8910065241883679]
[null,null,null,null,null,null,null,null,null,null,null,null,null,16.75,-0.85264016435409207]
[null,null,null,null,null,null,null,null,null,null,null,null,null,17,-0.80901699437494701]
[null,null,null,null,null,null,null,null,null,null,null,null,null,17.25,-0.76040596560003082]
[null,null,null,null,null,null,null,null,null,null,null,null,null,17.5,-0.70710678118654768]
[null,null,null,null,null,null,null,null,null,null,null,null,null,17.75,-0.64944804833018344]
[null,null,null,null,null,null,null,null,null,null,null,null,null,18,-0.58778525229247403]
[null,null,null,null,null,null,null,null,null,null,null,null,null,18.25,-0.52249856471594869]
[null,null,null,null,null,null,null,null,null,null,null,null,null,18.5,-0.45399049973954697]
[null,null,null,null,null,null,null,null,null,null,null,null,null,18.75,-0.38268343236508956]
[null,null,null,null,null,null,null,null,null,null,null,null,null,19,-0.30901699437494762]
[null,null,null,null,null,null,null,null,null,null,null,null,null,19.25,-0.2334453638559052]
[null,null,null,null,null,null,null,null,null,null,null,null,null,19.5,-0.15643446504023023]
[null,null,null,null,null,null,null,null,null,null,null,null,null,19.75,-7.8459095727844749E-2]
[null,null,null,null,null,null,null,null,null,null,null,null,null,20,-2.45029690981724E-16]
[null,null,null,null,null,null,null,null,null,null,null,null,null,20.25,7.8459095727846026E-2]
[null,null,null,null,null,null,null,null,null,null,null,null,null,20.5,0.15643446504022973]
[null,null,null,null,null,null,null,null,null,null,null,null,null,20.75,0.23344536385590473]
[null,null,null,null,null,null,null,null,null,null,null,null,null,21,0.30901699437494717]
[null,null,null,null,null,null,null,null,null,null,null,null,null,21.25,0.38268343236508995]
[null,null,null,null,null,null,null,null,null,null,null,null,null,21.5,0.45399049973954658]
[null,null,null,null,null,null,null,null,null,null,null,null,null,21.75,0.52249856471594824]
[null,null,null,null,null,null,null,null,null,null,null,null,null,22,0.58778525229247358]
[null,null,null,null,null,null,null,null,null,null,null,null,null,22.25,0.64944804833018377]
[null,null,null,null,null,null,null,null,null,null,null,null,null,22.5,0.70710678118654735]
[null,null,null,null,null,null,null,null,null,null,null,null,null,22.75,0.76040596560003104]
[null,null,null,null,null,null,null,null,null,null,null,null,null,23,0.80901699437494778]
[null,null,null,null,null,null,null,null,null,null,null,null,null,23.25,0.85264016435409273]
[null,null,null,null,null,null,null,null,null,null,null,null,null,23.5,0.89100652418836734]
[null,null,null,null,null,null,null,null,null,null,null,null,null,23.75,0.92387953251128685]
[null,null,null,null,null,null,null,null,null,null,null,null,null,24,0.95105651629515353]
[null,null,null,null,null,null,null,null,null,null,null,null,null,24.25,0.97236992039767645]
[null,null,null,null,null,null,null,null,null,null,null,null,null,24.5,0.98768834059513777]
[null,null,null,null,null,null,null,null,null,null,null,null,null,24.75,0.99691733373312796]
[null,null,null,null,null,null,null,null,null,null,null,null,null,25,1]
[null,null,null,null,null,null,null,null,null,null,null,null,null,25.25,0.99691733373312796]
[null,null,null,null,null,null,null,null,null,null,null,null,null,25.5,0.98768834059513788]
[null,null,null,null,null,null,null,null,null,null,null,null,null,25.75,0.97236992039767633]
[null,null,null,null,null,null,null,null,null,null,null,null,null,26,0.95105651629515364]
[null,null,null,null,null,null,null,null,null,null,null,null,null,26.25,0.92387953251128674]
[null,null,null,null,null,null,null,null,null,null,null,null,null,26.5,0.89100652418836757]
[null,null,null,null,null,null,null,null,null,null,null,null,null,26.75,0.85264016435409173]
[null,null,null,null,null,null,null,null,null,null,null,null,null,27,0.80901699437494656]
[null,null,null,null,null,null,null,null,null,null,null,null,null,27.25,0.76040596560003082]
[null,null,null,null,null,null,null,null,null,null,null,null,null,27.5,0.70710678118654713]
[null,null,null,null,null,null,null,null,null,null,null,null,null,27.75,0.64944804833018288]
[null,null,null,null,null,null,null,null,null,null,null,null,null,28,0.58778525229247192]
[null,null,null,null,null,null,null,null,null,null,null,null,null,28.25,0.52249856471595024]
[null,null,null,null,null,null,null,null,null,null,null,null,null,28.5,0.45399049973954947]
[null,null,null,null,null,null,null,null,null,null,null,null,null,28.75,0.3826834323650905]
[null,null,null,null,null,null,null,null,null,null,null,null,null,29,0.30901699437494778]
[null,null,null,null,null,null,null,null,null,null,null,null,null,29.25,0.23344536385590534]
[null,null,null,null,null,null,null,null,null,null,null,null,null,29.5,0.15643446504023034]
[null,null,null,null,null,null,null,null,null,null,null,null,null,29.75,7.8459095727847525E-2]
[null,null,null,null,null,null,null,null,null,null,null,null,null,30,3.67544536472586E-16]
[null,null,null,null,null,null,null,null,null,null,null,null,null,30.25,-7.8459095727845013E-2]
[null,null,null,null,null,null,null,null,null,null,null,null,null,30.5,-0.15643446504023137]
[null,null,null,null,null,null,null,null,null,null,null,null,null,30.75,-0.23344536385590461]
[null,null,null,null,null,null,null,null,null,null,null,null,null,31,-0.30901699437494706]
[null,null,null,null,null,null,null,null,null,null,null,null,null,31.25,-0.38268343236508984]
[null,null,null,null,null,null,null,null,null,null,null,null,null,31.5,-0.45399049973954725]
[null,null,null,null,null,null,null,null,null,null,null,null,null,31.75,-0.52249856471594813]
[null,null,null,null,null,null,null,null,null,null,null,null,null,32,-0.5877852522924728]
[null,null,null,null,null,null,null,null,null,null,null,null,null,32.25,{"$f":"SIN(RADIANS(N130/100*$V$3*360))","v":-0.64944804833018366}]
[null,null,null,null,null,null,null,null,null,null,null,null,null,32.5,-0.70710678118654791]
[null,null,null,null,null,null,null,null,null,null,null,null,null,32.75,-0.7604059656000316]
[null,null,null,null,null,null,null,null,null,null,null,null,null,33,-0.80901699437494723]
[null,null,null,null,null,null,null,null,null,null,null,null,null,33.25,-0.85264016435409229]
[null,null,null,null,null,null,null,null,null,null,null,null,null,33.5,-0.89100652418836812]
[null,null,null,null,null,null,null,null,null,null,null,null,null,33.75,-0.92387953251128641]
[null,null,null,null,null,null,null,null,null,null,null,null,null,34,-0.95105651629515398]
[null,null,null,null,null,null,null,null,null,null,null,null,null,34.25,-0.97236992039767656]
[null,null,null,null,null,null,null,null,null,null,null,null,null,34.5,-0.98768834059513777]
[null,null,null,null,null,null,null,null,null,null,null,null,null,34.75,-0.99691733373312774]
[null,null,null,null,null,null,null,null,null,null,null,null,null,35,-1]
[null,null,null,null,null,null,null,null,null,null,null,null,null,35.25,-0.99691733373312796]
[null,null,null,null,null,null,null,null,null,null,null,null,null,35.5,-0.98768834059513766]
[null,null,null,null,null,null,null,null,null,null,null,null,null,35.75,-0.97236992039767678]
[null,null,null,null,null,null,null,null,null,null,null,null,null,36,-0.95105651629515431]
[null,null,null,null,null,null,null,null,null,null,null,null,null,36.25,-0.92387953251128674]
[null,null,null,null,null,null,null,null,null,null,null,null,null,36.5,-0.89100652418836768]
[null,null,null,null,null,null,null,null,null,null,null,null,null,36.75,-0.85264016435409273]
[null,null,null,null,null,null,null,null,null,null,null,null,null,37,-0.80901699437494767]
[null,null,null,null,null,null,null,null,null,null,null,null,null,37.25,-0.76040596560003093]
[null,null,null,null,null,null,null,null,null,null,null,null,null,37.5,-0.70710678118654724]
[null,null,null,null,null,null,null,null,null,null,null,null,null,37.75,-0.64944804833018432]
[null,null,null,null,null,null,null,null,null,null,null,null,null,38,-0.58778525229247347]
[null,null,null,null,null,null,null,null,null,null,null,null,null,38.25,-0.52249856471594891]
[null,null,null,null,null,null,null,null,null,null,null,null,null,38.5,-0.45399049973954642]
[null,null,null,null,null,null,null,null,null,null,null,null,null,38.75,-0.38268343236509061]
[null,null,null,null,null,null,null,null,null,null,null,null,null,39,-0.30901699437494617]
[null,null,null,null,null,null,null,null,null,null,null,null,null,39.25,-0.23344536385590545]
[null,null,null,null,null,null,null,null,null,null,null,null,null,39.5,-0.15643446504023048]
[null,null,null,null,null,null,null,null,null,null,null,null,null,39.75,-7.8459095727845873E-2]
[null,null,null,null,null,null,null,null,null,null,null,null,null,40,-4.90059381963448E-16]
[null,null,null,null,null,null,null,null,null,null,null,null,null,40.25,7.8459095727846664E-2]
[null,null,null,null,null,null,null,null,null,null,null,null,null,40.5,0.15643446504023301]
[null,null,null,null,null,null,null,null,null,null,null,null,null,40.75,0.23344536385590275]
[null,null,null,null,null,null,null,null,null,null,null,null,null,41,0.30901699437494523]
[null,null,null,null,null,null,null,null,null,null,null,null,null,41.25,0.38268343236508973]
[null,null,null,null,null,null,null,null,null,null,null,null,null,41.5,0.45399049973954553]
[null,null,null,null,null,null,null,null,null,null,null,null,null,41.75,0.52249856471594802]
[null,null,null,null,null,null,null,null,null,null,null,null,null,42,0.58778525229247269]
[null,null,null,null,null,null,null,null,null,null,null,null,null,42.25,0.64944804833018221]
[null,null,null,null,null,null,null,null,null,null,null,null,null,42.5,0.70710678118654779]
[null,null,null,null,null,null,null,null,null,null,null,null,null,42.75,0.7604059656000326]
[null,null,null,null,null,null,null,null,null,null,null,null,null,43,0.80901699437494712]
[null,null,null,null,null,null,null,null,null,null,null,null,null,43.25,0.85264016435409218]
[null,null,null,null,null,null,null,null,null,null,null,null,null,43.5,0.89100652418836723]
[null,null,null,null,null,null,null,null,null,null,null,null,null,43.75,0.92387953251128641]
[null,null,null,null,null,null,null,null,null,null,null,null,null,44,0.95105651629515398]
[null,null,null,null,null,null,null,null,null,null,null,null,null,44.25,0.97236992039767656]
[null,null,null,null,null,null,null,null,null,null,null,null,null,44.5,0.98768834059513777]
[null,null,null,null,null,null,null,null,null,null,null,null,null,44.75,0.99691733373312774]
[null,null,null,null,null,null,null,null,null,null,null,null,null,45,1]
[null,null,null,null,null,null,null,null,null,null,null,null,null,45.25,0.99691733373312785]
[null,null,null,null,null,null,null,null,null,null,null,null,null,45.5,0.98768834059513766]
[null,null,null,null,null,null,null,null,null,null,null,null,null,45.75,0.97236992039767689]
[null,null,null,null,null,null,null,null,null,null,null,null,null,46,0.9510565162951532]
[null,null,null,null,null,null,null,null,null,null,null,null,null,46.25,0.92387953251128685]
[null,null,null,null,null,null,null,null,null,null,null,null,null,46.5,0.8910065241883669]
[null,null,null,null,null,null,null,null,null,null,null,null,null,46.75,0.85264016435409085]
[null,null,null,null,null,null,null,null,null,null,null,null,null,47,0.80901699437494878]
[null,null,null,null,null,null,null,null,null,null,null,null,null,47.25,0.76040596560003215]
[null,null,null,null,null,null,null,null,null,null,null,null,null,47.5,0.70710678118654735]
[null,null,null,null,null,null,null,null,null,null,null,null,null,47.75,0.64944804833018577]
[null,null,null,null,null,null,null,null,null,null,null,null,null,48,0.58778525229247358]
[null,null,null,null,null,null,null,null,null,null,null,null,null,48.25,{"$f":"SIN(RADIANS(N194/100*$V$3*360))","v":0.52249856471594902}]
[null,null,null,null,null,null,null,null,null,null,null,null,null,48.5,0.45399049973954814]
[null,null,null,null,null,null,null,null,null,null,null,null,null,48.75,0.38268343236509073]
[null,null,null,null,null,null,null,null,null,null,null,null,null,49,0.30901699437494629]
[null,null,null,null,null,null,null,null,null,null,null,null,null,49.25,0.23344536385590556]
[null,null,null,null,null,null,null,null,null,null,null,null,null,49.5,0.15643446504023059]
[null,null,null,null,null,null,null,null,null,null,null,null,null,49.75,7.8459095727847761E-2]
[null,null,null,null,null,null,null,null,null,null,null,null,null,50,6.1257422745431001E-16]
[null,null,null,null,null,null,null,null,null,null,null,null,null,50.25,-7.8459095727843001E-2]
[null,null,null,null,null,null,null,null,null,null,null,null,null,50.5,-0.15643446504023115]
[null,null,null,null,null,null,null,null,null,null,null,null,null,50.75,-0.23344536385590264]
[null,null,null,null,null,null,null,null,null,null,null,null,null,51,-0.30901699437494512]
[null,null,null,null,null,null,null,null,null,null,null,null,null,51.25,-0.38268343236508795]
[null,null,null,null,null,null,null,null,null,null,null,null,null,51.5,-0.45399049973954858]
[null,null,null,null,null,null,null,null,null,null,null,null,null,51.75,-0.52249856471594791]
[null,null,null,null,null,null,null,null,null,null,null,null,null,52,-0.58778525229247258]
[null,null,null,null,null,null,null,null,null,null,null,null,null,52.25,-0.64944804833018077]
[null,null,null,null,null,null,null,null,null,null,null,null,null,52.5,-0.70710678118654768]
[null,null,null,null,null,null,null,null,null,null,null,null,null,52.75,-0.76040596560002904]
[null,null,null,null,null,null,null,null,null,null,null,null,null,53,-0.80901699437494812]
[null,null,null,null,null,null,null,null,null,null,null,null,null,53.25,-0.85264016435409118]
[null,null,null,null,null,null,null,null,null,null,null,null,null,53.5,-0.89100652418836879]
[null,null,null,null,null,null,null,null,null,null,null,null,null,53.75,-0.92387953251128629]
[null,null,null,null,null,null,null,null,null,null,null,null,null,54,-0.95105651629515442]
[null,null,null,null,null,null,null,null,null,null,null,null,null,54.25,-0.97236992039767656]
[null,null,null,null,null,null,null,null,null,null,null,null,null,54.5,-0.98768834059513777]
[null,null,null,null,null,null,null,null,null,null,null,null,null,54.75,-0.99691733373312774]
[null,null,null,null,null,null,null,null,null,null,null,null,null,55,-1]
[null,null,null,null,null,null,null,null,null,null,null,null,null,55.25,-0.99691733373312785]
[null,null,null,null,null,null,null,null,null,null,null,null,null,55.5,-0.98768834059513744]
[null,null,null,null,null,null,null,null,null,null,null,null,null,55.75,-0.97236992039767689]
[null,null,null,null,null,null,null,null,null,null,null,null,null,56,-0.95105651629515264]
[null,null,null,null,null,null,null,null,null,null,null,null,null,56.25,-0.92387953251128685]
[null,null,null,null,null,null,null,null,null,null,null,null,null,56.5,-0.89100652418836934]
[null,null,null,null,null,null,null,null,null,null,null,null,null,56.75,-0.85264016435409185]
[null,null,null,null,null,null,null,null,null,null,null,null,null,57,-0.809016994374951]
[null,null,null,null,null,null,null,null,null,null,null,null,null,57.25,-0.76040596560003226]
[null,null,null,null,null,null,null,null,null,null,null,null,null,57.5,-0.70710678118654868]
[null,null,null,null,null,null,null,null,null,null,null,null,null,57.75,-0.64944804833018455]
[null,null,null,null,null,null,null,null,null,null,null,null,null,58,-0.58778525229247369]
[null,null,null,null,null,null,null,null,null,null,null,null,null,58.25,-0.52249856471594913]
[null,null,null,null,null,null,null,null,null,null,null,null,null,58.5,-0.45399049973954664]
[null,null,null,null,null,null,null,null,null,null,null,null,null,58.75,-0.38268343236508923]
[null,null,null,null,null,null,null,null,null,null,null,null,null,59,-0.3090169943749464]
[null,null,null,null,null,null,null,null,null,null,null,null,null,59.25,-0.23344536385590051]
[null,null,null,null,null,null,null,null,null,null,null,null,null,59.5,-0.15643446504023598]
[null,null,null,null,null,null,null,null,null,null,null,null,null,59.75,-7.8459095727846123E-2]
[null,null,null,null,null,null,null,null,null,null,null,null,null,60,-7.3508907294517201E-16]
[null,null,null,null,null,null,null,null,null,null,null,null,null,60.25,7.8459095727844652E-2]
[null,null,null,null,null,null,null,null,null,null,null,null,null,60.5,0.15643446504023101]
[null,null,null,null,null,null,null,null,null,null,null,null,null,60.75,0.23344536385590597]
[null,null,null,null,null,null,null,null,null,null,null,null,null,61,0.30901699437494839]
[null,null,null,null,null,null,null,null,null,null,null,null,null,61.25,0.38268343236508784]
[null,null,null,null,null,null,null,null,null,null,null,null,null,61.5,0.45399049973954531]
[null,null,null,null,null,null,null,null,null,null,null,null,null,61.75,0.52249856471595091]
[null,null,null,null,null,null,null,null,null,null,null,null,null,62,0.58778525229247247]
[null,null,null,null,null,null,null,null,null,null,null,null,null,62.25,0.64944804833018344]
[null,null,null,null,null,null,null,null,null,null,null,null,null,62.5,0.70710678118654757]
[null,null,null,null,null,null,null,null,null,null,null,null,null,62.75,0.76040596560003126]
[null,null,null,null,null,null,null,null,null,null,null,null,null,63,0.80901699437494801]
[null,null,null,null,null,null,null,null,null,null,null,null,null,63.25,0.85264016435408929]
[null,null,null,null,null,null,null,null,null,null,null,null,null,63.5,0.89100652418836712]
[null,null,null,null,null,null,null,null,null,null,null,null,null,63.75,0.92387953251128629]
[null,null,null,null,null,null,null,null,null,null,null,null,null,64,0.95105651629515331]
[null,null,null,null,null,null,null,null,null,null,null,null,null,64.25,{"$f":"SIN(RADIANS(N258/100*$V$3*360))","v":0.97236992039767656}]
[null,null,null,null,null,null,null,null,null,null,null,null,null,64.5,0.98768834059513777]
[null,null,null,null,null,null,null,null,null,null,null,null,null,64.75,0.99691733373312796]
[null,null,null,null,null,null,null,null,null,null,null,null,null,65,1]
[null,null,null,null,null,null,null,null,null,null,null,null,null,65.25,0.99691733373312785]
[null,null,null,null,null,null,null,null,null,null,null,null,null,65.5,0.98768834059513744]
[null,null,null,null,null,null,null,null,null,null,null,null,null,65.75,0.97236992039767778]
[null,null,null,null,null,null,null,null,null,null,null,null,null,66,0.95105651629515386]
[null,null,null,null,null,null,null,null,null,null,null,null,null,66.25,0.92387953251128685]
[null,null,null,null,null,null,null,null,null,null,null,null,null,66.5,0.89100652418836779]
[null,null,null,null,null,null,null,null,null,null,null,null,null,66.75,0.85264016435409196]
[null,null,null,null,null,null,null,null,null,null,null,null,null,67,0.8090169943749469]
[null,null,null,null,null,null,null,null,null,null,null,null,null,67.25,0.76040596560003004]
[null,null,null,null,null,null,null,null,null,null,null,null,null,67.5,0.70710678118654868]
[null,null,null,null,null,null,null,null,null,null,null,null,null,67.75,0.64944804833018466]
[null,null,null,null,null,null,null,null,null,null,null,null,null,68,0.58778525229247092]
[null,null,null,null,null,null,null,null,null,null,null,null,null,68.25,0.52249856471594924]
[null,null,null,null,null,null,null,null,null,null,null,null,null,68.5,0.45399049973954675]
[null,null,null,null,null,null,null,null,null,null,null,null,null,68.75,0.38268343236508934]
[null,null,null,null,null,null,null,null,null,null,null,null,null,69,0.30901699437494656]
[null,null,null,null,null,null,null,null,null,null,null,null,null,69.25,0.23344536385590409]
[null,null,null,null,null,null,null,null,null,null,null,null,null,69.5,0.15643446504023609]
[null,null,null,null,null,null,null,null,null,null,null,null,null,69.75,7.8459095727846234E-2]
[null,null,null,null,null,null,null,null,null,null,null,null,null,70,8.5760391843603401E-16]
[null,null,null,null,null,null,null,null,null,null,null,null,null,70.25,-7.8459095727844527E-2]
[null,null,null,null,null,null,null,null,null,null,null,null,null,70.5,-0.1564344650402309]
[null,null,null,null,null,null,null,null,null,null,null,null,null,70.75,-0.23344536385590586]
[null,null,null,null,null,null,null,null,null,null,null,null,null,71,-0.30901699437494828]
[null,null,null,null,null,null,null,null,null,null,null,null,null,71.25,-0.382683432365091]
[null,null,null,null,null,null,null,null,null,null,null,null,null,71.5,-0.45399049973954519]
[null,null,null,null,null,null,null,null,null,null,null,null,null,71.75,-0.5224985647159508]
[null,null,null,null,null,null,null,null,null,null,null,null,null,72,-0.58778525229246958]
[null,null,null,null,null,null,null,null,null,null,null,null,null,72.25,-0.64944804833018333]
[null,null,null,null,null,null,null,null,null,null,null,null,null,72.5,-0.70710678118654757]
[null,null,null,null,null,null,null,null,null,null,null,null,null,72.75,-0.76040596560003126]
[null,null,null,null,null,null,null,null,null,null,null,null,null,73,-0.8090169943749479]
[null,null,null,null,null,null,null,null,null,null,null,null,null,73.25,-0.85264016435409296]
[null,null,null,null,null,null,null,null,null,null,null,null,null,73.5,-0.89100652418836701]
[null,null,null,null,null,null,null,null,null,null,null,null,null,73.75,-0.92387953251128629]
[null,null,null,null,null,null,null,null,null,null,null,null,null,74,-0.95105651629515331]
[null,null,null,null,null,null,null,null,null,null,null,null,null,74.25,-0.97236992039767733]
[null,null,null,null,null,null,null,null,null,null,null,null,null,74.5,-0.98768834059513777]
[null,null,null,null,null,null,null,null,null,null,null,null,null,74.75,-0.99691733373312796]
[null,null,null,null,null,null,null,null,null,null,null,null,null,75,-1]
[null,null,null,null,null,null,null,null,null,null,null,null,null,75.25,-0.99691733373312785]
[null,null,null,null,null,null,null,null,null,null,null,null,null,75.5,-0.98768834059513799]
[null,null,null,null,null,null,null,null,null,null,null,null,null,75.75,-0.97236992039767778]
[null,null,null,null,null,null,null,null,null,null,null,null,null,76,-0.95105651629515386]
[null,null,null,null,null,null,null,null,null,null,null,null,null,76.25,-0.92387953251128696]
[null,null,null,null,null,null,null,null,null,null,null,null,null,76.5,-0.8910065241883679]
[null,null,null,null,null,null,null,null,null,null,null,null,null,76.75,-0.85264016435409207]
[null,null,null,null,null,null,null,null,null,null,null,null,null,77,-0.8090169943749469]
[null,null,null,null,null,null,null,null,null,null,null,null,null,77.25,-0.76040596560003015]
[null,null,null,null,null,null,null,null,null,null,null,null,null,77.5,-0.70710678118654879]
[null,null,null,null,null,null,null,null,null,null,null,null,null,77.75,-0.64944804833018477]
[null,null,null,null,null,null,null,null,null,null,null,null,null,78,-0.58778525229247103]
[null,null,null,null,null,null,null,null,null,null,null,null,null,78.25,-0.52249856471595235]
[null,null,null,null,null,null,null,null,null,null,null,null,null,78.5,-0.45399049973954686]
[null,null,null,null,null,null,null,null,null,null,null,null,null,78.75,-0.38268343236508945]
[null,null,null,null,null,null,null,null,null,null,null,null,null,79,-0.30901699437494667]
[null,null,null,null,null,null,null,null,null,null,null,null,null,79.25,-0.2334453638559042]
[null,null,null,null,null,null,null,null,null,null,null,null,null,79.5,-0.1564344650402327]
[null,null,null,null,null,null,null,null,null,null,null,null,null,79.75,-7.8459095727846359E-2]
[null,null,null,null,null,null,null,null,null,null,null,null,null,80,-9.8011876392689601E-16]
[null,null,null,null,null,null,null,null,null,null,null,null,null,80.25,{"$f":"SIN(RADIANS(N322/100*$V$3*360))","v":7.8459095727844402E-2}]
[null,null,null,null,null,null,null,null,null,null,null,null,null,80.5,0.15643446504023428]
[null,null,null,null,null,null,null,null,null,null,null,null,null,80.75,0.23344536385590228]
[null,null,null,null,null,null,null,null,null,null,null,null,null,81,0.30901699437495156]
[null,null,null,null,null,null,null,null,null,null,null,null,null,81.25,0.38268343236509089]
[null,null,null,null,null,null,null,null,null,null,null,null,null,81.5,0.45399049973954192]
[null,null,null,null,null,null,null,null,null,null,null,null,null,81.75,0.52249856471595069]
[null,null,null,null,null,null,null,null,null,null,null,null,null,82,0.58778525229246947]
[null,null,null,null,null,null,null,null,null,null,null,null,null,82.25,0.64944804833018321]
[null,null,null,null,null,null,null,null,null,null,null,null,null,82.5,0.70710678118654746]
[null,null,null,null,null,null,null,null,null,null,null,null,null,82.75,0.76040596560003115]
[null,null,null,null,null,null,null,null,null,null,null,null,null,83,0.80901699437494579]
[null,null,null,null,null,null,null,null,null,null,null,null,null,83.25,0.85264016435408918]
[null,null,null,null,null,null,null,null,null,null,null,null,null,83.5,0.89100652418836701]
[null,null,null,null,null,null,null,null,null,null,null,null,null,83.75,0.92387953251128618]
[null,null,null,null,null,null,null,null,null,null,null,null,null,84,0.95105651629515331]
[null,null,null,null,null,null,null,null,null,null,null,null,null,84.25,0.97236992039767733]
[null,null,null,null,null,null,null,null,null,null,null,null,null,84.5,0.9876883405951371]
[null,null,null,null,null,null,null,null,null,null,null,null,null,84.75,0.99691733373312796]
[null,null,null,null,null,null,null,null,null,null,null,null,null,85,1]
[null,null,null,null,null,null,null,null,null,null,null,null,null,85.25,0.99691733373312785]
[null,null,null,null,null,null,null,null,null,null,null,null,null,85.5,0.98768834059513688]
[null,null,null,null,null,null,null,null,null,null,null,null,null,85.75,0.97236992039767611]
[null,null,null,null,null,null,null,null,null,null,null,null,null,86,0.95105651629515386]
[null,null,null,null,null,null,null,null,null,null,null,null,null,86.25,0.92387953251128696]
[null,null,null,null,null,null,null,null,null,null,null,null,null,86.5,0.8910065241883679]
[null,null,null,null,null,null,null,null,null,null,null,null,null,86.75,0.85264016435409018]
[null,null,null,null,null,null,null,null,null,null,null,null,null,87,0.80901699437494912]
[null,null,null,null,null,null,null,null,null,null,null,null,null,87.25,0.76040596560002793]
[null,null,null,null,null,null,null,null,null,null,null,null,null,87.5,0.70710678118654891]
[null,null,null,null,null,null,null,null,null,null,null,null,null,87.75,0.64944804833018754]
[null,null,null,null,null,null,null,null,null,null,null,null,null,88,0.58778525229247114]
[null,null,null,null,null,null,null,null,null,null,null,null,null,88.25,0.52249856471595246]
[null,null,null,null,null,null,null,null,null,null,null,null,null,88.5,0.45399049973954697]
[null,null,null,null,null,null,null,null,null,null,null,null,null,88.75,0.38268343236508956]
[null,null,null,null,null,null,null,null,null,null,null,null,null,89,0.30901699437494679]
[null,null,null,null,null,null,null,null,null,null,null,null,null,89.25,0.23344536385591122]
[null,null,null,null,null,null,null,null,null,null,null,null,null,89.5,0.15643446504023634]
[null,null,null,null,null,null,null,null,null,null,null,null,null,89.75,7.8459095727846484E-2]
[null,null,null,null,null,null,null,null,null,null,null,null,null,90,1.102633609417758E-15]
[null,null,null,null,null,null,null,null,null,null,null,null,null,90.25,-7.8459095727844291E-2]
[null,null,null,null,null,null,null,null,null,null,null,null,null,90.5,-0.15643446504023417]
[null,null,null,null,null,null,null,null,null,null,null,null,null,90.75,-0.23344536385590217]
[null,null,null,null,null,null,null,null,null,null,null,null,null,91,-0.30901699437494806]
[null,null,null,null,null,null,null,null,null,null,null,null,null,91.25,-0.38268343236509078]
[null,null,null,null,null,null,null,null,null,null,null,null,null,91.5,-0.45399049973954503]
[null,null,null,null,null,null,null,null,null,null,null,null,null,91.75,-0.52249856471595058]
[null,null,null,null,null,null,null,null,null,null,null,null,null,92,-0.58778525229247514]
[null,null,null,null,null,null,null,null,null,null,null,null,null,92.25,-0.6494480483301831]
[null,null,null,null,null,null,null,null,null,null,null,null,null,92.5,-0.70710678118654735]
[null,null,null,null,null,null,null,null,null,null,null,null,null,92.75,-0.76040596560003104]
[null,null,null,null,null,null,null,null,null,null,null,null,null,93,-0.80901699437494989]
[null,null,null,null,null,null,null,null,null,null,null,null,null,93.25,-0.85264016435408907]
[null,null,null,null,null,null,null,null,null,null,null,null,null,93.5,-0.89100652418837012]
[null,null,null,null,null,null,null,null,null,null,null,null,null,93.75,-0.92387953251128618]
[null,null,null,null,null,null,null,null,null,null,null,null,null,94,-0.95105651629515209]
[null,null,null,null,null,null,null,null,null,null,null,null,null,94.25,-0.97236992039767722]
[null,null,null,null,null,null,null,null,null,null,null,null,null,94.5,-0.9876883405951371]
[null,null,null,null,null,null,null,null,null,null,null,null,null,94.75,-0.99691733373312796]
[null,null,null,null,null,null,null,null,null,null,null,null,null,95,-1]
[null,null,null,null,null,null,null,null,null,null,null,null,null,95.25,-0.99691733373312785]
[null,null,null,null,null,null,null,null,null,null,null,null,null,95.5,-0.98768834059513866]
[null,null,null,null,null,null,null,null,null,null,null,null,null,95.75,-0.97236992039767778]
[null,null,null,null,null,null,null,null,null,null,null,null,null,96,-0.95105651629515398]
[null,null,null,null,null,null,null,null,null,null,null,null,null,96.25,{"$f":"SIN(RADIANS(N386/100*$V$3*360))","v":-0.92387953251128707}]
[null,null,null,null,null,null,null,null,null,null,null,null,null,96.5,-0.89100652418836801]
[null,null,null,null,null,null,null,null,null,null,null,null,null,96.75,-0.85264016435409029]
[null,null,null,null,null,null,null,null,null,null,null,null,null,97,-0.80901699437494912]
[null,null,null,null,null,null,null,null,null,null,null,null,null,97.25,-0.76040596560003026]
[null,null,null,null,null,null,null,null,null,null,null,null,null,97.5,-0.70710678118654902]
[null,null,null,null,null,null,null,null,null,null,null,null,null,97.75,-0.64944804833018488]
[null,null,null,null,null,null,null,null,null,null,null,null,null,98,-0.58778525229247125]
[null,null,null,null,null,null,null,null,null,null,null,null,null,98.25,-0.52249856471594647]
[null,null,null,null,null,null,null,null,null,null,null,null,null,98.5,-0.45399049973954708]
[null,null,null,null,null,null,null,null,null,null,null,null,null,98.75,-0.38268343236508967]
[null,null,null,null,null,null,null,null,null,null,null,null,null,99,-0.3090169943749469]
[null,null,null,null,null,null,null,null,null,null,null,null,null,99.25,-0.23344536385590098]
[null,null,null,null,null,null,null,null,null,null,null,null,null,99.5,-0.15643446504023645]
[null,null,null,null,null,null,null,null,null,null,null,null,null,99.75,-7.845909572784307E-2]
[null,null,null,null,null,null,null,null,null,null,null,null,null,100,-1.22514845490862E-15]

{"sheet":"Amplitude","index":1,"n_rows":401,"n_cols":23,"rows_kept":401,"cut":false,"hidden":false,"merged":[]}
["Oefeningen amplitude 2 HV",null,null,null,null,null,null,null,null,null,null,null,0,{"$f":"SIN(RADIANS(M1/100*$V$3*360))*$V$3/5","v":0}]
[null,null,null,null,null,null,null,null,null,null,null,null,0.25,0.61080107591031918]
[null,null,null,null,null,null,null,null,null,null,null,null,0.5,1.1921820163822034,null,100,"aantal trillingen",null,null,{"$f":"ROUND(RANDBETWEEN(1,25),0)","v":1},null,14]
[null,null,null,null,null,null,null,null,null,null,null,null,0.75,1.716139750228334,null,2]
[null,null,null,null,null,null,null,null,null,null,null,null,1,2.15743707977221,null,100]
[null,null,null,null,null,null,null,null,null,null,null,null,1.25,2.49481826772743,null,3,"geluidsterkte/hokje",null,null,{"$f":"RANDBETWEEN(1,25)","v":2},"dB",10,"dB"]
[null,null,null,null,null,null,null,null,null,null,null,null,1.5,2.712032851160167]
[null,null,null,null,null,null,null,null,null,null,null,null,1.75,2.7986183690240485,null,null,"amplitue in cm",null,null,{"$f":"$T$3/5","v":0.2},"cm",2.8,"cm"]
[null,null,null,null,null,null,null,null,null,null,null,null,2,2.7504043020403279]
[null,null,null,null,null,null,null,null,null,null,null,null,2.25,2.5697129519151471,null,null,"Amplitude in dB",null,null,{"$f":"T8*T6","v":0.4},"dB",28,"dB"]
[null,null,null,null,null,null,null,null,null,null,null,null,2.5,2.2652475842498521]
[null,null,null,null,null,null,null,null,null,null,null,null,2.75,1.8516732229062249]
[null,null,null,null,null,null,null,null,null,null,null,null,3,1.3489102874848036,null,null,null,null,{"$f":"CONCATENATE(\"De amplitude = \",TEXT(0,V8),\" x \",TEXT(0,V6),\" dB = \",TEXT(0,V10),\" dB\")","v":"De amplitude = 2,8 x 10 dB = 28 dB"}]
[null,null,null,null,null,null,null,null,null,null,null,null,3.25,0.78117509690984144]
[null,null,null,null,null,null,null,null,null,null,null,null,3.5,0.17581345468207679]
[null,null,null,null,null,null,null,null,null,null,null,null,3.75,-0.43801650211264603]
[null,null,{"$f":"CONCATENATE(\"Geluidssterkte per hokje is \",TEXT(0,V6),\" dB.\")","v":"Geluidssterkte per hokje is 10 dB."},null,null,null,null,null,null,null,null,null,4,-1.0307487475170993]
[null,null,"Bereken de amplitude.",null,null,null,null,null,null,null,null,null,4.25,-1.5738334579859656]
[null,null,null,null,null,null,null,null,null,null,null,null,4.5,-2.0411121567799522]
[null,null,null,null,null,null,null,null,null,null,null,null,4.75,-2.4100776756110425]
[null,null,null,null,null,null,null,null,null,null,null,null,5,-2.6629582456264305]
[null,null,null,null,null,null,null,null,null,null,null,null,5.25,-2.787573500888624]
[null,null,null,null,null,null,null,null,null,null,null,null,5.5,-2.7779211636805381]
[null,null,null,null,null,null,null,null,null,null,null,null,5.75,-2.634466153071831]
[null,null,null,null,null,null,null,null,null,null,null,null,6,-2.3641181914056437]
[null,null,null,null,null,null,null,null,null,null,null,null,6.25,-1.9798989873223334]
[null,null,null,null,null,null,null,null,null,null,null,null,6.5,-1.5003150259411897]
[null,null,null,null,null,null,null,null,null,null,null,null,6.75,-0.94846617668681366]
[null,null,null,null,null,null,null,null,null,null,null,null,7,-0.35093305398005059]
[null,null,null,null,null,null,null,null,null,null,null,null,7.25,0.26350327729183787]
[null,null,null,null,null,null,null,null,null,null,null,null,7.5,0.86524758424985215]
[null,null,null,null,null,null,null,null,null,null,null,null,7.75,1.425315964101038]
[null,null,null,null,null,null,null,null,null,null,null,null,8,1.9167318966003299]
[null,null,null,null,null,null,null,null,null,null,null,null,8.25,2.3158256079687738]
[null,null,null,null,null,null,null,null,null,null,null,null,8.5,2.6033741604871041]
[null,null,null,null,null,null,null,null,null,null,null,null,8.75,2.7655273536663851]
[null,null,null,null,null,null,null,null,null,null,null,null,9,2.7944748395991601]
[null,null,null,null,null,null,null,null,null,null,null,null,9.25,2.6888223198954408]
[null,null,null,null,null,null,null,null,null,null,null,null,9.5,2.4536587041228173]
[null,null,null,null,null,null,null,null,null,null,null,null,9.75,2.1003109949652883]
[null,null,null,null,null,null,null,null,null,null,null,null,10,1.6457987064189215]
[null,null,null,null,null,null,null,null,null,null,null,null,10.25,1.1120140937773897]
[null,null,null,null,null,null,null,null,null,null,null,null,10.5,0.52466768084002702]
[null,null,null,null,null,null,null,null,null,null,null,null,10.75,-8.7950125418757713E-2]
[null,null,null,null,null,null,null,null,null,null,null,null,11,-0.69633168406159329]
[null,null,null,null,null,null,null,null,null,null,null,null,11.25,-1.2711733992707324]
[null,null,null,null,null,null,null,null,null,null,null,null,11.5,-1.7847871712963337]
[null,null,null,null,null,null,null,null,null,null,null,null,11.75,-2.2124340346519324]
[null,null,null,null,null,null,null,null,null,null,null,null,12,-2.533515746904853]
[null,null,null,null,null,null,null,null,null,null,null,null,12.25,-2.7325669334284921]
[null,null,null,null,null,null,null,null,null,null,null,null,12.5,-2.8]
[null,null,null,null,null,null,null,null,null,null,null,null,12.75,-2.7325669334284926]
[null,null,null,null,null,null,null,null,null,null,null,null,13,-2.5335157469048539]
[null,null,null,null,null,null,null,null,null,null,null,null,13.25,-2.2124340346519338]
[null,null,null,null,null,null,null,null,null,null,null,null,13.5,-1.7847871712963275]
[null,null,null,null,null,null,null,null,null,null,null,null,13.75,-1.2711733992707255]
[null,null,null,null,null,null,null,null,null,null,null,null,14,-0.69633168406159085]
[null,null,null,null,null,null,null,null,null,null,null,null,14.25,-8.7950125418765068E-2]
[null,null,null,null,null,null,null,null,null,null,null,null,14.5,0.52466768084002469]
[null,null,null,null,null,null,null,null,null,null,null,null,14.75,1.112014093777383]
[null,null,null,null,null,null,null,null,null,null,null,null,15,1.6457987064189237]
[null,null,null,null,null,null,null,null,null,null,null,null,15.25,2.1003109949652834]
[null,null,null,null,null,null,null,null,null,null,null,null,15.5,2.4536587041228168]
[null,null,null,null,null,null,null,null,null,null,null,null,15.75,2.6888223198954413]
[null,null,null,null,null,null,null,null,null,null,null,null,16,{"$f":"SIN(RADIANS(M65/100*$V$3*360))*$V$3/5","v":2.7944748395991605}]
[null,null,null,null,null,null,null,null,null,null,null,null,16.25,2.7655273536663856]
[null,null,null,null,null,null,null,null,null,null,null,null,16.5,2.6033741604871032]
[null,null,null,null,null,null,null,null,null,null,null,null,16.75,2.3158256079687711]
[null,null,null,null,null,null,null,null,null,null,null,null,17,1.9167318966003282]
[null,null,null,null,null,null,null,null,null,null,null,null,17.25,1.4253159641010424]
[null,null,null,null,null,null,null,null,null,null,null,null,17.5,0.86524758424985904]
[null,null,null,null,null,null,null,null,null,null,null,null,17.75,0.26350327729184525]
[null,null,null,null,null,null,null,null,null,null,null,null,18,-0.35093305398005314]
[null,null,null,null,null,null,null,null,null,null,null,null,18.25,-0.94846617668681377]
[null,null,null,null,null,null,null,null,null,null,null,null,18.5,-1.5003150259411899]
[null,null,null,null,null,null,null,null,null,null,null,null,18.75,-1.9798989873223334]
[null,null,null,null,null,null,null,null,null,null,null,null,19,-2.3641181914056437]
[null,null,null,null,null,null,null,null,null,null,null,null,19.25,-2.6344661530718327]
[null,null,null,null,null,null,null,null,null,null,null,null,19.5,-2.7779211636805377]
[null,null,null,null,null,null,null,null,null,null,null,null,19.75,-2.7875735008886235]
[null,null,null,null,null,null,null,null,null,null,null,null,20,-2.6629582456264274]
[null,null,null,null,null,null,null,null,null,null,null,null,20.25,-2.4100776756110425]
[null,null,null,null,null,null,null,null,null,null,null,null,20.5,-2.0411121567799584]
[null,null,null,null,null,null,null,null,null,null,null,null,20.75,-1.5738334579859719]
[null,null,null,null,null,null,null,null,null,null,null,null,21,-1.0307487475170947]
[null,null,null,null,null,null,null,null,null,null,null,null,21.25,-0.43801650211265092]
[null,null,null,null,null,null,null,null,null,null,null,null,21.5,0.1758134546820744]
[null,null,null,null,null,null,null,null,null,null,null,null,21.75,0.78117509690984044]
[null,null,null,null,null,null,null,null,null,null,null,null,22,1.3489102874848027]
[null,null,null,null,null,null,null,null,null,null,null,null,22.25,1.8516732229062263]
[null,null,null,null,null,null,null,null,null,null,null,null,22.5,2.2652475842498543]
[null,null,null,null,null,null,null,null,null,null,null,null,22.75,2.5697129519151449]
[null,null,null,null,null,null,null,null,null,null,null,null,23,2.7504043020403293]
[null,null,null,null,null,null,null,null,null,null,null,null,23.25,2.798618369024048]
[null,null,null,null,null,null,null,null,null,null,null,null,23.5,2.7120328511601675]
[null,null,null,null,null,null,null,null,null,null,null,null,23.75,2.4948182677274295]
[null,null,null,null,null,null,null,null,null,null,null,null,24,2.1574370797722153]
[null,null,null,null,null,null,null,null,null,null,null,null,24.25,1.7161397502283318]
[null,null,null,null,null,null,null,null,null,null,null,null,24.5,1.1921820163822083]
[null,null,null,null,null,null,null,null,null,null,null,null,24.75,0.61080107591032295]
[null,null,null,null,null,null,null,null,null,null,null,null,25,2.4012909716208952E-15]
[null,null,null,null,null,null,null,null,null,null,null,null,25.25,-0.61080107591032795]
[null,null,null,null,null,null,null,null,null,null,null,null,25.5,-1.1921820163822039]
[null,null,null,null,null,null,null,null,null,null,null,null,25.75,-1.716139750228328]
[null,null,null,null,null,null,null,null,null,null,null,null,26,-2.1574370797722122]
[null,null,null,null,null,null,null,null,null,null,null,null,26.25,-2.4948182677274273]
[null,null,null,null,null,null,null,null,null,null,null,null,26.5,-2.7120328511601661]
[null,null,null,null,null,null,null,null,null,null,null,null,26.75,-2.798618369024048]
[null,null,null,null,null,null,null,null,null,null,null,null,27,-2.7504043020403266]
[null,null,null,null,null,null,null,null,null,null,null,null,27.25,-2.5697129519151467]
[null,null,null,null,null,null,null,null,null,null,null,null,27.5,-2.2652475842498458]
[null,null,null,null,null,null,null,null,null,null,null,null,27.75,-1.8516732229062225]
[null,null,null,null,null,null,null,null,null,null,null,null,28,-1.3489102874847982]
[null,null,null,null,null,null,null,null,null,null,null,null,28.25,-0.78117509690984499]
[null,null,null,null,null,null,null,null,null,null,null,null,28.5,-0.17581345468208912]
[null,null,null,null,null,null,null,null,null,null,null,null,28.75,0.43801650211263637]
[null,null,null,null,null,null,null,null,null,null,null,null,29,1.0307487475170902]
[null,null,null,null,null,null,null,null,null,null,null,null,29.25,1.5738334579859596]
[null,null,null,null,null,null,null,null,null,null,null,null,29.5,2.0411121567799482]
[null,null,null,null,null,null,null,null,null,null,null,null,29.75,2.4100776756110447]
[null,null,null,null,null,null,null,null,null,null,null,null,30,2.6629582456264291]
[null,null,null,null,null,null,null,null,null,null,null,null,30.25,2.787573500888624]
[null,null,null,null,null,null,null,null,null,null,null,null,30.5,2.7779211636805394]
[null,null,null,null,null,null,null,null,null,null,null,null,30.75,2.6344661530718341]
[null,null,null,null,null,null,null,null,null,null,null,null,31,2.3641181914056459]
[null,null,null,null,null,null,null,null,null,null,null,null,31.25,1.9798989873223369]
[null,null,null,null,null,null,null,null,null,null,null,null,31.5,1.5003150259411857]
[null,null,null,null,null,null,null,null,null,null,null,null,31.75,0.94846617668681821]
[null,null,null,null,null,null,null,null,null,null,null,null,32,{"$f":"SIN(RADIANS(M129/100*$V$3*360))*$V$3/5","v":0.35093305398004304}]
[null,null,null,null,null,null,null,null,null,null,null,null,32.25,-0.26350327729184048]
[null,null,null,null,null,null,null,null,null,null,null,null,32.5,-0.8652475842498546]
[null,null,null,null,null,null,null,null,null,null,null,null,32.75,-1.4253159641010338]
[null,null,null,null,null,null,null,null,null,null,null,null,33,-1.9167318966003317]
[null,null,null,null,null,null,null,null,null,null,null,null,33.25,-2.3158256079687769]
[null,null,null,null,null,null,null,null,null,null,null,null,33.5,-2.6033741604871068]
[null,null,null,null,null,null,null,null,null,null,null,null,33.75,-2.7655273536663869]
[null,null,null,null,null,null,null,null,null,null,null,null,34,-2.7944748395991601]
[null,null,null,null,null,null,null,null,null,null,null,null,34.25,-2.68882231989544]
[null,null,null,null,null,null,null,null,null,null,null,null,34.5,-2.4536587041228213]
[null,null,null,null,null,null,null,null,null,null,null,null,34.75,-2.1003109949652901]
[null,null,null,null,null,null,null,null,null,null,null,null,35,-1.6457987064189357]
[null,null,null,null,null,null,null,null,null,null,null,null,35.25,-1.1120140937773875]
[null,null,null,null,null,null,null,null,null,null,null,null,35.5,-0.52466768084003912]
[null,null,null,null,null,null,null,null,null,null,null,null,35.75,8.7950125418760267E-2]
[null,null,null,null,null,null,null,null,null,null,null,null,36,0.69633168406159585]
[null,null,null,null,null,null,null,null,null,null,null,null,36.25,1.2711733992707257]
[null,null,null,null,null,null,null,null,null,null,null,null,36.5,1.7847871712963279]
[null,null,null,null,null,null,null,null,null,null,null,null,36.75,2.2124340346519249]
[null,null,null,null,null,null,null,null,null,null,null,null,37,2.5335157469048539]
[null,null,null,null,null,null,null,null,null,null,null,null,37.25,2.7325669334284908]
[null,null,null,null,null,null,null,null,null,null,null,null,37.5,2.8]
[null,null,null,null,null,null,null,null,null,null,null,null,37.75,2.7325669334284899]
[null,null,null,null,null,null,null,null,null,null,null,null,38,2.533515746904853]
[null,null,null,null,null,null,null,null,null,null,null,null,38.25,2.2124340346519236]
[null,null,null,null,null,null,null,null,null,null,null,null,38.5,1.7847871712963257]
[null,null,null,null,null,null,null,null,null,null,null,null,38.75,1.2711733992707321]
[null,null,null,null,null,null,null,null,null,null,null,null,39,0.69633168406160284]
[null,null,null,null,null,null,null,null,null,null,null,null,39.25,8.7950125418757533E-2]
[null,null,null,null,null,null,null,null,null,null,null,null,39.5,-0.52466768084004189]
[null,null,null,null,null,null,null,null,null,null,null,null,39.75,-1.1120140937773899]
[null,null,null,null,null,null,null,null,null,null,null,null,40,-1.6457987064189379]
[null,null,null,null,null,null,null,null,null,null,null,null,40.25,-2.1003109949652918]
[null,null,null,null,null,null,null,null,null,null,null,null,40.5,-2.4536587041228177]
[null,null,null,null,null,null,null,null,null,null,null,null,40.75,-2.6888223198954435]
[null,null,null,null,null,null,null,null,null,null,null,null,41,-2.7944748395991592]
[null,null,null,null,null,null,null,null,null,null,null,null,41.25,-2.7655273536663865]
[null,null,null,null,null,null,null,null,null,null,null,null,41.5,-2.6033741604871095]
[null,null,null,null,null,null,null,null,null,null,null,null,41.75,-2.3158256079687751]
[null,null,null,null,null,null,null,null,null,null,null,null,42,-1.9167318966003226]
[null,null,null,null,null,null,null,null,null,null,null,null,42.25,-1.42531596410104]
[null,null,null,null,null,null,null,null,null,null,null,null,42.5,-0.86524758424986137]
[null,null,null,null,null,null,null,null,null,null,null,null,42.75,-0.26350327729183776]
[null,null,null,null,null,null,null,null,null,null,null,null,43,0.35093305398004582]
[null,null,null,null,null,null,null,null,null,null,null,null,43.25,0.94846617668680222]
[null,null,null,null,null,null,null,null,null,null,null,null,43.5,1.5003150259411879]
[null,null,null,null,null,null,null,null,null,null,null,null,43.75,1.9798989873223249]
[null,null,null,null,null,null,null,null,null,null,null,null,44,2.3641181914056419]
[null,null,null,null,null,null,null,null,null,null,null,null,44.25,2.634466153071835]
[null,null,null,null,null,null,null,null,null,null,null,null,44.5,2.7779211636805385]
[null,null,null,null,null,null,null,null,null,null,null,null,44.75,2.7875735008886244]
[null,null,null,null,null,null,null,null,null,null,null,null,45,2.6629582456264282]
[null,null,null,null,null,null,null,null,null,null,null,null,45.25,2.4100776756110438]
[null,null,null,null,null,null,null,null,null,null,null,null,45.5,2.0411121567799602]
[null,null,null,null,null,null,null,null,null,null,null,null,45.75,1.5738334579859656]
[null,null,null,null,null,null,null,null,null,null,null,null,46,1.0307487475170878]
[null,null,null,null,null,null,null,null,null,null,null,null,46.25,0.43801650211264348]
[null,null,null,null,null,null,null,null,null,null,null,null,46.5,-0.17581345468209186]
[null,null,null,null,null,null,null,null,null,null,null,null,46.75,-0.78117509690982845]
[null,null,null,null,null,null,null,null,null,null,null,null,47,-1.3489102874848007]
[null,null,null,null,null,null,null,null,null,null,null,null,47.25,-1.8516732229062172]
[null,null,null,null,null,null,null,null,null,null,null,null,47.5,-2.2652475842498534]
[null,null,null,null,null,null,null,null,null,null,null,null,47.75,-2.569712951915144]
[null,null,null,null,null,null,null,null,null,null,null,null,48,{"$f":"SIN(RADIANS(M193/100*$V$3*360))*$V$3/5","v":-2.7504043020403253}]
[null,null,null,null,null,null,null,null,null,null,null,null,48.25,-2.798618369024048]
[null,null,null,null,null,null,null,null,null,null,null,null,48.5,-2.7120328511601657]
[null,null,null,null,null,null,null,null,null,null,null,null,48.75,-2.4948182677274309]
[null,null,null,null,null,null,null,null,null,null,null,null,49,-2.1574370797722167]
[null,null,null,null,null,null,null,null,null,null,null,null,49.25,-1.7161397502283493]
[null,null,null,null,null,null,null,null,null,null,null,null,49.5,-1.1921820163822106]
[null,null,null,null,null,null,null,null,null,null,null,null,49.75,-0.61080107591031552]
[null,null,null,null,null,null,null,null,null,null,null,null,50,-4.8025819432417904E-15]
[null,null,null,null,null,null,null,null,null,null,null,null,50.25,0.61080107591030619]
[null,null,null,null,null,null,null,null,null,null,null,null,50.5,1.1921820163822197]
[null,null,null,null,null,null,null,null,null,null,null,null,50.75,1.7161397502283262]
[null,null,null,null,null,null,null,null,null,null,null,null,51,2.1574370797722104]
[null,null,null,null,null,null,null,null,null,null,null,null,51.25,2.4948182677274175]
[null,null,null,null,null,null,null,null,null,null,null,null,51.5,2.7120328511601635]
[null,null,null,null,null,null,null,null,null,null,null,null,51.75,2.798618369024048]
[null,null,null,null,null,null,null,null,null,null,null,null,52,2.750404302040327]
[null,null,null,null,null,null,null,null,null,null,null,null,52.25,2.5697129519151556]
[null,null,null,null,null,null,null,null,null,null,null,null,52.5,2.2652475842498587]
[null,null,null,null,null,null,null,null,null,null,null,null,52.75,1.8516732229062243]
[null,null,null,null,null,null,null,null,null,null,null,null,53,1.3489102874848089]
[null,null,null,null,null,null,null,null,null,null,null,null,53.25,0.78117509690983777]
[null,null,null,null,null,null,null,null,null,null,null,null,53.5,0.17581345468208159]
[null,null,null,null,null,null,null,null,null,null,null,null,53.75,-0.43801650211265358]
[null,null,null,null,null,null,null,null,null,null,null,null,54,-1.0307487475171158]
[null,null,null,null,null,null,null,null,null,null,null,null,54.25,-1.5738334579859576]
[null,null,null,null,null,null,null,null,null,null,null,null,54.5,-2.0411121567799535]
[null,null,null,null,null,null,null,null,null,null,null,null,54.75,-2.4100776756110389]
[null,null,null,null,null,null,null,null,null,null,null,null,55,-2.6629582456264376]
[null,null,null,null,null,null,null,null,null,null,null,null,55.25,-2.787573500888624]
[null,null,null,null,null,null,null,null,null,null,null,null,55.5,-2.7779211636805372]
[null,null,null,null,null,null,null,null,null,null,null,null,55.75,-2.6344661530718385]
[null,null,null,null,null,null,null,null,null,null,null,null,56,-2.3641181914056366]
[null,null,null,null,null,null,null,null,null,null,null,null,56.25,-1.9798989873223316]
[null,null,null,null,null,null,null,null,null,null,null,null,56.5,-1.5003150259411959]
[null,null,null,null,null,null,null,null,null,null,null,null,56.75,-0.9484661766868111]
[null,null,null,null,null,null,null,null,null,null,null,null,57,-0.35093305398007513]
[null,null,null,null,null,null,null,null,null,null,null,null,57.25,0.26350327729184803]
[null,null,null,null,null,null,null,null,null,null,null,null,57.5,0.86524758424983328]
[null,null,null,null,null,null,null,null,null,null,null,null,57.75,1.4253159641010491]
[null,null,null,null,null,null,null,null,null,null,null,null,58,1.9167318966003155]
[null,null,null,null,null,null,null,null,null,null,null,null,58.25,2.3158256079687809]
[null,null,null,null,null,null,null,null,null,null,null,null,58.5,2.6033741604870988]
[null,null,null,null,null,null,null,null,null,null,null,null,58.75,2.7655273536663851]
[null,null,null,null,null,null,null,null,null,null,null,null,59,2.794474839599161]
[null,null,null,null,null,null,null,null,null,null,null,null,59.25,2.6888223198954462]
[null,null,null,null,null,null,null,null,null,null,null,null,59.5,2.4536587041228128]
[null,null,null,null,null,null,null,null,null,null,null,null,59.75,2.1003109949652847]
[null,null,null,null,null,null,null,null,null,null,null,null,60,1.6457987064189292]
[null,null,null,null,null,null,null,null,null,null,null,null,60.25,1.1120140937773806]
[null,null,null,null,null,null,null,null,null,null,null,null,60.5,0.52466768084003168]
[null,null,null,null,null,null,null,null,null,null,null,null,60.75,-8.7950125418767816E-2]
[null,null,null,null,null,null,null,null,null,null,null,null,61,-0.6963316840615742]
[null,null,null,null,null,null,null,null,null,null,null,null,61.25,-1.2711733992707415]
[null,null,null,null,null,null,null,null,null,null,null,null,61.5,-1.7847871712963184]
[null,null,null,null,null,null,null,null,null,null,null,null,61.75,-2.2124340346519418]
[null,null,null,null,null,null,null,null,null,null,null,null,62,-2.533515746904849]
[null,null,null,null,null,null,null,null,null,null,null,null,62.25,-2.7325669334284921]
[null,null,null,null,null,null,null,null,null,null,null,null,62.5,-2.8]
[null,null,null,null,null,null,null,null,null,null,null,null,62.75,-2.7325669334284926]
[null,null,null,null,null,null,null,null,null,null,null,null,63,-2.5335157469048495]
[null,null,null,null,null,null,null,null,null,null,null,null,63.25,-2.2124340346519431]
[null,null,null,null,null,null,null,null,null,null,null,null,63.5,-1.784787171296335]
[null,null,null,null,null,null,null,null,null,null,null,null,63.75,-1.271173399270761]
[null,null,null,null,null,null,null,null,null,null,null,null,64,{"$f":"SIN(RADIANS(M257/100*$V$3*360))*$V$3/5","v":-0.69633168406157631}]
[null,null,null,null,null,null,null,null,null,null,null,null,64.25,-8.795012541876987E-2]
[null,null,null,null,null,null,null,null,null,null,null,null,64.5,0.52466768084002979]
[null,null,null,null,null,null,null,null,null,null,null,null,64.75,1.1120140937773604]
[null,null,null,null,null,null,null,null,null,null,null,null,65,1.6457987064189279]
[null,null,null,null,null,null,null,null,null,null,null,null,65.25,2.1003109949652834]
[null,null,null,null,null,null,null,null,null,null,null,null,65.5,2.4536587041228115]
[null,null,null,null,null,null,null,null,null,null,null,null,65.75,2.68882231989544]
[null,null,null,null,null,null,null,null,null,null,null,null,66,2.794474839599161]
[null,null,null,null,null,null,null,null,null,null,null,null,66.25,2.7655273536663856]
[null,null,null,null,null,null,null,null,null,null,null,null,66.5,2.6033741604870992]
[null,null,null,null,null,null,null,null,null,null,null,null,66.75,2.3158256079687822]
[null,null,null,null,null,null,null,null,null,null,null,null,67,1.9167318966003168]
[null,null,null,null,null,null,null,null,null,null,null,null,67.25,1.4253159641010509]
[null,null,null,null,null,null,null,null,null,null,null,null,67.5,0.86524758424983528]
[null,null,null,null,null,null,null,null,null,null,null,null,67.75,0.26350327729185002]
[null,null,null,null,null,null,null,null,null,null,null,null,68,-0.35093305398005337]
[null,null,null,null,null,null,null,null,null,null,null,null,68.25,-0.94846617668680933]
[null,null,null,null,null,null,null,null,null,null,null,null,68.5,-1.5003150259411944]
[null,null,null,null,null,null,null,null,null,null,null,null,68.75,-1.9798989873223303]
[null,null,null,null,null,null,null,null,null,null,null,null,69,-2.3641181914056353]
[null,null,null,null,null,null,null,null,null,null,null,null,69.25,-2.6344661530718376]
[null,null,null,null,null,null,null,null,null,null,null,null,69.5,-2.7779211636805368]
[null,null,null,null,null,null,null,null,null,null,null,null,69.75,-2.787573500888624]
[null,null,null,null,null,null,null,null,null,null,null,null,70,-2.6629582456264385]
[null,null,null,null,null,null,null,null,null,null,null,null,70.25,-2.41007767561103]
[null,null,null,null,null,null,null,null,null,null,null,null,70.5,-2.0411121567799548]
[null,null,null,null,null,null,null,null,null,null,null,null,70.75,-1.5738334579859594]
[null,null,null,null,null,null,null,null,null,null,null,null,71,-1.0307487475171175]
[null,null,null,null,null,null,null,null,null,null,null,null,71.25,-0.43801650211265564]
[null,null,null,null,null,null,null,null,null,null,null,null,71.5,0.17581345468207954]
[null,null,null,null,null,null,null,null,null,null,null,null,71.75,0.78117509690983566]
[null,null,null,null,null,null,null,null,null,null,null,null,72,1.3489102874848071]
[null,null,null,null,null,null,null,null,null,null,null,null,72.25,1.8516732229062227]
[null,null,null,null,null,null,null,null,null,null,null,null,72.5,2.2652475842498458]
[null,null,null,null,null,null,null,null,null,null,null,null,72.75,2.5697129519151547]
[null,null,null,null,null,null,null,null,null,null,null,null,73,2.7504043020403266]
[null,null,null,null,null,null,null,null,null,null,null,null,73.25,2.7986183690240476]
[null,null,null,null,null,null,null,null,null,null,null,null,73.5,2.7120328511601732]
[null,null,null,null,null,null,null,null,null,null,null,null,73.75,2.4948182677274273]
[null,null,null,null,null,null,null,null,null,null,null,null,74,2.1574370797722118]
[null,null,null,null,null,null,null,null,null,null,null,null,74.25,1.716139750228312]
[null,null,null,null,null,null,null,null,null,null,null,null,74.5,1.1921820163822217]
[null,null,null,null,null,null,null,null,null,null,null,null,74.75,0.61080107591030819]
[null,null,null,null,null,null,null,null,null,null,null,null,75,-2.7437253857787171E-15]
[null,null,null,null,null,null,null,null,null,null,null,null,75.25,-0.61080107591031363]
[null,null,null,null,null,null,null,null,null,null,null,null,75.5,-1.1921820163822265]
[null,null,null,null,null,null,null,null,null,null,null,null,75.75,-1.7161397502283162]
[null,null,null,null,null,null,null,null,null,null,null,null,76,-2.1574370797722153]
[null,null,null,null,null,null,null,null,null,null,null,null,76.25,-2.4948182677274122]
[null,null,null,null,null,null,null,null,null,null,null,null,76.5,-2.712032851160175]
[null,null,null,null,null,null,null,null,null,null,null,null,76.75,-2.798618369024048]
[null,null,null,null,null,null,null,null,null,null,null,null,77,-2.7504043020403257]
[null,null,null,null,null,null,null,null,null,null,null,null,77.25,-2.5697129519151605]
[null,null,null,null,null,null,null,null,null,null,null,null,77.5,-2.2652475842498538]
[null,null,null,null,null,null,null,null,null,null,null,null,77.75,-1.8516732229062334]
[null,null,null,null,null,null,null,null,null,null,null,null,78,-1.3489102874848198]
[null,null,null,null,null,null,null,null,null,null,null,null,78.25,-0.78117509690983045]
[null,null,null,null,null,null,null,null,null,null,null,null,78.5,-0.17581345468207407]
[null,null,null,null,null,null,null,null,null,null,null,null,78.75,0.43801650211264143]
[null,null,null,null,null,null,null,null,null,null,null,null,79,1.0307487475171226]
[null,null,null,null,null,null,null,null,null,null,null,null,79.25,1.5738334579859476]
[null,null,null,null,null,null,null,null,null,null,null,null,79.5,2.0411121567799588]
[null,null,null,null,null,null,null,null,null,null,null,null,79.75,2.410077675611022]
[null,null,null,null,null,null,null,null,null,null,null,null,80,{"$f":"SIN(RADIANS(M321/100*$V$3*360))*$V$3/5","v":2.6629582456264398}]
[null,null,null,null,null,null,null,null,null,null,null,null,80.25,2.7875735008886222]
[null,null,null,null,null,null,null,null,null,null,null,null,80.5,2.7779211636805359]
[null,null,null,null,null,null,null,null,null,null,null,null,80.75,2.6344661530718425]
[null,null,null,null,null,null,null,null,null,null,null,null,81,2.3641181914056433]
[null,null,null,null,null,null,null,null,null,null,null,null,81.25,1.9798989873223405]
[null,null,null,null,null,null,null,null,null,null,null,null,81.5,1.5003150259411728]
[null,null,null,null,null,null,null,null,null,null,null,null,81.75,0.94846617668684152]
[null,null,null,null,null,null,null,null,null,null,null,null,82,0.35093305398008734]
[null,null,null,null,null,null,null,null,null,null,null,null,82.25,-0.26350327729187534]
[null,null,null,null,null,null,null,null,null,null,null,null,82.5,-0.86524758424984061]
[null,null,null,null,null,null,null,null,null,null,null,null,82.75,-1.4253159641010555]
[null,null,null,null,null,null,null,null,null,null,null,null,83,-1.9167318966003066]
[null,null,null,null,null,null,null,null,null,null,null,null,83.25,-2.3158256079687738]
[null,null,null,null,null,null,null,null,null,null,null,null,83.5,-2.603374160487101]
[null,null,null,null,null,null,null,null,null,null,null,null,83.75,-2.7655273536663834]
[null,null,null,null,null,null,null,null,null,null,null,null,84,-2.7944748395991597]
[null,null,null,null,null,null,null,null,null,null,null,null,84.25,-2.6888223198954386]
[null,null,null,null,null,null,null,null,null,null,null,null,84.5,-2.4536587041228186]
[null,null,null,null,null,null,null,null,null,null,null,null,84.75,-2.1003109949652932]
[null,null,null,null,null,null,null,null,null,null,null,null,85,-1.6457987064189392]
[null,null,null,null,null,null,null,null,null,null,null,null,85.25,-1.1120140937773737]
[null,null,null,null,null,null,null,null,null,null,null,null,85.5,-0.52466768084002424]
[null,null,null,null,null,null,null,null,null,null,null,null,85.75,8.7950125418755465E-2]
[null,null,null,null,null,null,null,null,null,null,null,null,86,0.69633168406158152]
[null,null,null,null,null,null,null,null,null,null,null,null,86.25,1.2711733992707126]
[null,null,null,null,null,null,null,null,null,null,null,null,86.5,1.7847871712963088]
[null,null,null,null,null,null,null,null,null,null,null,null,86.75,2.2124340346519586]
[null,null,null,null,null,null,null,null,null,null,null,null,87,2.5335157469048522]
[null,null,null,null,null,null,null,null,null,null,null,null,87.25,2.7325669334284894]
[null,null,null,null,null,null,null,null,null,null,null,null,87.5,2.8]
[null,null,null,null,null,null,null,null,null,null,null,null,87.75,2.7325669334284912]
[null,null,null,null,null,null,null,null,null,null,null,null,88,2.5335157469048548]
[null,null,null,null,null,null,null,null,null,null,null,null,88.25,2.2124340346519631]
[null,null,null,null,null,null,null,null,null,null,null,null,88.5,1.7847871712963141]
[null,null,null,null,null,null,null,null,null,null,null,null,88.75,1.2711733992707186]
[null,null,null,null,null,null,null,null,null,null,null,null,89,0.6963316840615883]
[null,null,null,null,null,null,null,null,null,null,null,null,89.25,8.795012541876232E-2]
[null,null,null,null,null,null,null,null,null,null,null,null,89.5,-0.52466768084001758]
[null,null,null,null,null,null,null,null,null,null,null,null,89.75,-1.1120140937773673]
[null,null,null,null,null,null,null,null,null,null,null,null,90,-1.6457987064189339]
[null,null,null,null,null,null,null,null,null,null,null,null,90.25,-2.1003109949652883]
[null,null,null,null,null,null,null,null,null,null,null,null,90.5,-2.4536587041228151]
[null,null,null,null,null,null,null,null,null,null,null,null,90.75,-2.6888223198954364]
[null,null,null,null,null,null,null,null,null,null,null,null,91,-2.7944748395991588]
[null,null,null,null,null,null,null,null,null,null,null,null,91.25,-2.7655273536663842]
[null,null,null,null,null,null,null,null,null,null,null,null,91.5,-2.6033741604871041]
[null,null,null,null,null,null,null,null,null,null,null,null,91.75,-2.3158256079687778]
[null,null,null,null,null,null,null,null,null,null,null,null,92,-1.9167318966003115]
[null,null,null,null,null,null,null,null,null,null,null,null,92.25,-1.4253159641010615]
[null,null,null,null,null,null,null,null,null,null,null,null,92.5,-0.86524758424984716]
[null,null,null,null,null,null,null,null,null,null,null,null,92.75,-0.26350327729188217]
[null,null,null,null,null,null,null,null,null,null,null,null,93,0.35093305398008051]
[null,null,null,null,null,null,null,null,null,null,null,null,93.25,0.94846617668683508]
[null,null,null,null,null,null,null,null,null,null,null,null,93.5,1.5003150259411671]
[null,null,null,null,null,null,null,null,null,null,null,null,93.75,1.9798989873223356]
[null,null,null,null,null,null,null,null,null,null,null,null,94,2.3641181914056393]
[null,null,null,null,null,null,null,null,null,null,null,null,94.25,2.6344661530718265]
[null,null,null,null,null,null,null,null,null,null,null,null,94.5,2.7779211636805354]
[null,null,null,null,null,null,null,null,null,null,null,null,94.75,2.7875735008886231]
[null,null,null,null,null,null,null,null,null,null,null,null,95,2.66295824562643]
[null,null,null,null,null,null,null,null,null,null,null,null,95.25,2.4100776756110256]
[null,null,null,null,null,null,null,null,null,null,null,null,95.5,2.0411121567799633]
[null,null,null,null,null,null,null,null,null,null,null,null,95.75,1.5738334579859532]
[null,null,null,null,null,null,null,null,null,null,null,null,96,{"$f":"SIN(RADIANS(M385/100*$V$3*360))*$V$3/5","v":1.0307487475171291}]
[null,null,null,null,null,null,null,null,null,null,null,null,96.25,0.4380165021126482]
[null,null,null,null,null,null,null,null,null,null,null,null,96.5,-0.17581345468210693]
[null,null,null,null,null,null,null,null,null,null,null,null,96.75,-0.78117509690982401]
[null,null,null,null,null,null,null,null,null,null,null,null,97,-1.3489102874848138]
[null,null,null,null,null,null,null,null,null,null,null,null,97.25,-1.8516732229061983]
[null,null,null,null,null,null,null,null,null,null,null,null,97.5,-2.2652475842498498]
[null,null,null,null,null,null,null,null,null,null,null,null,97.75,-2.5697129519151578]
[null,null,null,null,null,null,null,null,null,null,null,null,98,-2.7504043020403244]
[null,null,null,null,null,null,null,null,null,null,null,null,98.25,-2.798618369024048]
[null,null,null,null,null,null,null,null,null,null,null,null,98.5,-2.7120328511601768]
[null,null,null,null,null,null,null,null,null,null,null,null,98.75,-2.4948182677274331]
[null,null,null,null,null,null,null,null,null,null,null,null,99,-2.1574370797722198]
[null,null,null,null,null,null,null,null,null,null,null,null,99.25,-1.7161397502283218]
[null,null,null,null,null,null,null,null,null,null,null,null,99.5,-1.1921820163821968]
[null,null,null,null,null,null,null,null,null,null,null,null,99.75,-0.61080107591035904]
[null,null,null,null,null,null,null,null,null,null,null,null,100,-9.6051638864835809E-15]

{"sheet":"Frequentie-2","index":2,"n_rows":25,"n_cols":23,"rows_kept":25,"cut":false,"hidden":false,"merged":[]}
["Bereken de trillingstijd met gegeven frequentie"]
[null,"Frequentie",null,"Trillingstijd"]
[null,{"$f":"P3","v":7.6},"Hz",null,"s",{"$f":"IF(D3=\"\",\"\",IF(ROUND(D3,2)=ROUND(R3,2),\"Oke\",\"Ojee\"))","v":""},0.13157894736842105,"s",131.57894736842104,"ms",null,null,null,null,{"$f":"RANDBETWEEN(1,999)/10","v":76.2},7.6,null,{"$f":"1/P3","v":0.13157894736842105},"s",{"$f":"R3*1000","v":131.57894736842104},"ms",null,"ms"]
[null,{"$f":"P4","v":654},"Hz",null,"s",{"$f":"IF(D4=\"\",\"\",IF(ROUND(D4,2)=ROUND(R4,2),\"Oke\",\"Ojee\"))","v":""},1.5290519877675841E-3,"s",1.5290519877675841,"ms",null,null,null,null,{"$f":"RANDBETWEEN(1,999)","v":964},654,null,{"$f":"1/P4","v":1.5290519877675841E-3},"s",{"$f":"R4*1000","v":1.5290519877675841},"ms",null,"ms"]
[null,18.8,"Hz",null,"s","",5.3191489361702128E-2,"s",53.191489361702125,"ms",null,null,null,null,{"$f":"RANDBETWEEN(1,999)/20","v":44.5},18.8,null,5.3191489361702128E-2,"s",53.191489361702125,"ms",null,"ms"]
[null,426,"Hz",null,"s","",2.3474178403755869E-3,"s",2.347417840375587,"ms",null,null,null,null,81,426,null,2.3474178403755869E-3,"s",2.347417840375587,"ms",null,"ms"]
[null,20.399999999999999,"Hz",null,"s","",4.9019607843137261E-2,"s",49.019607843137258,"ms",null,null,null,null,{"$f":"RANDBETWEEN(1,999)/30","v":28.066666666666666},20.399999999999999,null,4.9019607843137261E-2,"s",49.019607843137258,"ms",null,"ms"]
[null,null,null,null,null,""]
[null,22.9,"kHz",null,"s","",4.3668122270742362E-5,"s",43.668122270742359,"µs","Lees E als x 10 tot de macht",null,null,null,{"$f":"RANDBETWEEN(1,999)/10","v":67.5},22.9,null,{"$f":"1/P9/1000","v":4.3668122270742362E-5},"s",{"$f":"R9*1000000","v":43.668122270742359},"µs",null,"µs"]
[null,304,"kHz",null,"s","",3.2894736842105261E-6,"s",3.2894736842105261,"µs","E-03 = x 0,001",null,null,null,339,304,null,{"$f":"1/P10/1000","v":3.2894736842105261E-6},"s",{"$f":"R10*1000000","v":3.2894736842105261},"µs",null,"µs"]
[null,39.35,"kHz",null,"s","",2.5412960609911054E-5,"s",25.412960609911053,"µs","E-02 = x 0,01",null,null,null,{"$f":"RANDBETWEEN(1,999)/20","v":0.6},39.35,null,2.5412960609911054E-5,"s",25.412960609911053,"µs"]
[null,280,"kHz",null,"s","",3.5714285714285714E-6,"s",3.5714285714285712,"µs","E-01 = x 0,1",null,null,null,288,280,null,3.5714285714285714E-6,"s",3.5714285714285712,"µs"]
[null,20.066666666666666,"kHz",null,"s","",4.9833887043189372E-5,"s",49.833887043189371,"µs","E+00 = x 1",null,null,null,{"$f":"RANDBETWEEN(1,999)/30","v":17.966666666666665},20.066666666666666,null,4.9833887043189372E-5,"s",49.833887043189371,"µs"]
[null,null,null,null,null,"",null,null,null,null,"E+01 = x 10"]
[null,57,"MHz",null,"s","",1.7543859649122805E-8,"s",17.543859649122805,"ns","E+02 = x 100",null,null,null,{"$f":"RANDBETWEEN(1,999)/10","v":63.8},57,null,{"$f":"1/P15/1000000","v":1.7543859649122805E-8},"s",{"$f":"R15*1000000000","v":17.543859649122805},"ns"]
[null,190,"MHz",null,"s","",5.2631578947368421E-9,"s",5.2631578947368425,"ns","E+03 = x 1000",null,null,null,921,190,null,{"$f":"1/P16/1000000","v":5.2631578947368421E-9},"s",{"$f":"R16*1000000000","v":5.2631578947368425},"ns"]
[null,42.25,"MHz",null,"s","",2.3668639053254436E-8,"s",23.668639053254438,"ns",null,null,null,null,{"$f":"RANDBETWEEN(1,999)/20","v":28.4},42.25,null,2.3668639053254436E-8,"s",23.668639053254438,"ns"]
[null,413,"MHz",null,"s","",2.4213075060532691E-9,"s",2.4213075060532692,"ns",null,null,null,null,106,413,null,2.4213075060532691E-9,"s",2.4213075060532692,"ns"]
[null,13.266666666666667,"MHz",null,"s","",7.5376884422110548E-8,"s",75.37688442211055,"ns",null,null,null,null,{"$f":"RANDBETWEEN(1,999)/30","v":10.433333333333334},13.266666666666667,null,7.5376884422110548E-8,"s",75.37688442211055,"ns"]
[null,null,null,null,null,""]
[null,20.3,"GHz",null,"s","",4.9261083743842358E-11,"s",49.261083743842356,"ps",null,null,null,null,{"$f":"RANDBETWEEN(1,999)/10","v":65.2},20.3,null,{"$f":"1/P21/1000000000","v":4.9261083743842358E-11},"s",{"$f":"R21*1000000000000","v":49.261083743842356},"ps"]
[null,725,"GHz",null,"s","",1.379310344827586E-12,"s",1.3793103448275861,"ps",null,null,null,null,133,725,null,{"$f":"1/P22/1000000000","v":1.379310344827586E-12},"s",{"$f":"R22*1000000000000","v":1.3793103448275861},"ps"]
[null,3.45,"GHz",null,"s","",2.8985507246376814E-10,"s",289.85507246376812,"ps",null,null,null,null,{"$f":"RANDBETWEEN(1,999)/20","v":48.8},3.45,null,2.8985507246376814E-10,"s",289.85507246376812,"ps"]
[null,307,"GHz",null,"s","",3.257328990228013E-12,"s",3.2573289902280131,"ps",null,null,null,null,959,307,null,3.257328990228013E-12,"s",3.2573289902280131,"ps"]
[null,17.766666666666666,"GHz",null,"s","",5.6285178236397752E-11,"s",56.285178236397755,"ps",null,null,null,null,{"$f":"RANDBETWEEN(1,999)/30","v":7.166666666666667},17.766666666666666,null,5.6285178236397752E-11,"s",56.285178236397755,"ps"]

{"sheet":"Trillingstijd","index":3,"n_rows":31,"n_cols":21,"rows_kept":31,"cut":false,"hidden":false,"merged":[]}
["Bereken de frequentie met de gegeven trillingstijd"]
[null,"Trillingstijd",null,"Frequentie"]
[null,{"$f":"P3","v":40.4},"s",null,"Hz",{"$f":"IF(D3=\"\",\"\",IF(ROUND(D3,2)=ROUND(R3,2),\"Oke\",\"Ojee\"))","v":""},2.4752475247524754E-2,"Hz",2.4752475247524754E-2,"Hz",null,null,null,null,{"$f":"RANDBETWEEN(1,999)/10","v":60},40.4,null,{"$f":"1/P3","v":2.4752475247524754E-2},"Hz",{"$f":"R3","v":2.4752475247524754E-2},"Hz"]
[null,{"$f":"P4","v":43.2},"s",null,"Hz",{"$f":"IF(D4=\"\",\"\",IF(ROUND(D4,2)=ROUND(R4,2),\"Oke\",\"Ojee\"))","v":""},2.3148148148148147E-2,"Hz",2.3148148148148147E-2,"Hz",null,null,null,null,{"$f":"RANDBETWEEN(1,999)/10","v":30.5},43.2,null,2.3148148148148147E-2,"Hz",{"$f":"R4","v":2.3148148148148147E-2},"Hz"]
[null,24.9,"s",null,"Hz","",4.0160642570281124E-2,"Hz",4.0160642570281124E-2,"Hz",null,null,null,null,19.899999999999999,24.9,null,4.0160642570281124E-2,"Hz",4.0160642570281124E-2,"Hz"]
[null,83.7,"s",null,"Hz","",1.1947431302270011E-2,"Hz",1.1947431302270011E-2,"Hz",null,null,null,null,34.1,83.7,null,1.1947431302270011E-2,"Hz",1.1947431302270011E-2,"Hz"]
[null,86.4,"s",null,"Hz","",1.1574074074074073E-2,"Hz",1.1574074074074073E-2,"Hz",null,null,null,null,49.9,86.4,null,1.1574074074074073E-2,"Hz",1.1574074074074073E-2,"Hz"]
[null,null,null,null,null,""]
[null,71.400000000000006,"ms",null,"Hz","",14.005602240896357,"Hz",14.005602240896357,"Hz",null,null,null,null,{"$f":"RANDBETWEEN(1,999)/10","v":82.6},71.400000000000006,null,{"$f":"1/P9*1000","v":14.005602240896357},"Hz",{"$f":"R9","v":14.005602240896357},"Hz"]
[null,82.4,"ms",null,"Hz","",12.135922330097086,"Hz",12.135922330097086,"Hz",null,null,null,null,{"$f":"RANDBETWEEN(1,999)/10","v":35.200000000000003},82.4,null,{"$f":"1/P10*1000","v":12.135922330097086},"Hz",12.135922330097086,"Hz"]
[null,90,"ms",null,"Hz","",11.111111111111111,"Hz",11.111111111111111,"Hz",null,null,null,null,51.3,90,null,11.111111111111111,"Hz",11.111111111111111,"Hz"]
[null,25.9,"ms",null,"Hz","",38.610038610038607,"Hz",38.610038610038607,"Hz",null,null,null,null,93.9,25.9,null,38.610038610038607,"Hz",38.610038610038607,"Hz"]
[null,76.599999999999994,"ms",null,"Hz","",13.054830287206267,"Hz",13.054830287206267,"Hz",null,null,null,null,68,76.599999999999994,null,13.054830287206267,"Hz",13.054830287206267,"Hz"]
[null,null,null,null,null,""]
[null,81.599999999999994,"µs",null,"Hz","",12254.901960784315,"Hz",12.254901960784315,"kHz",null,null,null,null,{"$f":"RANDBETWEEN(1,999)/10","v":87.3},81.599999999999994,null,{"$f":"1/P15*1000000","v":12254.901960784315},"Hz",{"$f":"R15/1000","v":12.254901960784315},"kHz"]
[null,94.2,"µs",null,"Hz","",10615.711252653928,"Hz",10.615711252653927,"kHz",null,null,null,null,{"$f":"RANDBETWEEN(1,999)/10","v":68.5},94.2,null,{"$f":"1/P16*1000000","v":10615.711252653928},"Hz",{"$f":"R16/1000","v":10.615711252653927},"kHz"]
[null,11,"µs",null,"Hz","",90909.090909090912,"Hz",90.909090909090907,"kHz",null,null,null,null,60,11,null,90909.090909090912,"Hz",90.909090909090907,"kHz"]
[null,10.199999999999999,"µs",null,"Hz","",98039.215686274518,"Hz",98.039215686274517,"kHz",null,null,null,null,17.899999999999999,10.199999999999999,null,98039.215686274518,"Hz",98.039215686274517,"kHz"]
[null,79.2,"µs",null,"Hz","",12626.262626262625,"Hz",12.626262626262626,"kHz",null,null,null,null,56.1,79.2,null,12626.262626262625,"Hz",12.626262626262626,"kHz"]
[null,null,null,null,null,""]
[null,30.8,"ns",null,"Hz","",32467532.467532463,"Hz",32.467532467532465,"MHz",null,null,null,null,{"$f":"RANDBETWEEN(1,999)/10","v":8.6999999999999993},30.8,null,{"$f":"1/P21*1000000000","v":32467532.467532463},"Hz",{"$f":"R21/1000000","v":32.467532467532465},"MHz"]
[null,73.3,"ns",null,"Hz","",13642564.80218281,"Hz",13.642564802182811,"MHz",null,null,null,null,28.1,73.3,null,{"$f":"1/P22*1000000000","v":13642564.80218281},"Hz",{"$f":"R22/1000000","v":13.642564802182811},"MHz"]
[null,87.1,"ns",null,"Hz","",11481056.257175662,"Hz",11.481056257175661,"MHz",null,null,null,null,10.5,87.1,null,11481056.257175662,"Hz",11.481056257175661,"MHz"]
[null,65.2,"ns",null,"Hz","",15337423.312883435,"Hz",15.337423312883434,"MHz",null,null,null,null,57.9,65.2,null,15337423.312883435,"Hz",15.337423312883434,"MHz"]
[null,90.1,"ns",null,"Hz","",11098779.134295229,"Hz",11.09877913429523,"MHz",null,null,null,null,67.7,90.1,null,11098779.134295229,"Hz",11.09877913429523,"MHz"]
[]
[]
[]
[]
[]
[null,"www.betavakken.nl"]

{"sheet":"Help","index":4,"n_rows":11,"n_cols":13,"rows_kept":11,"cut":false,"hidden":false,"merged":[]}
["Bereken de frequentie vanuit een tekening met trillinngen",null,null,null,null,null,"Berekende  trillingstijd",null,null,null,"Bereken de frequentie"]
[]
["Stap 1:     ",null,"Bereken de totale tijd",null,null,null,"Verzamel",null,"f = …..Hz",null,"Verzamel",null,"f = ?"]
["            ",null,"Aantal vakjes maal tijd per vakje",null,null,null,null,null,"T = ?",null,null,null,"T =……s"]
[null,null,null,null,null,null,"Formule",null,null,null,"Formule"]
["Stap2:",null,"Bereken de tijd van één trilling (T)"]
[]
[]
[null,null,null,null,null,null,"Invullen",null,null,null,"Invullen"]
["Stap 3:",null,"Bereken frequentie volgens groene"]
[null,null,"voorbeeld.",null,null,null,"uitkomst",null,null,null,"uitkomst"]